Cogmind - Beta 13 @@@ ROGUE MODE // 2024.07.16 @ 19:26:59 Player: Briarspitter Result: Destroyed by TW-4QW(z) with Zionite Laser-S Performance ------------- Evolutions (1) 500 Regions Visited (5) 1000 Robots Destroyed (31) 155 Value Destroyed (806) 806 Prototype IDs (9) 180 Alien Tech Used (0) 0 Bonus (851) 851 TOTAL SCORE: 3492 Bonus ------- Destroyed Z-Imprinter 1000 Friendly Fire -149 Cogmind --------- Core Integrity 0/400 Matter 238/300 Energy 322/350 System Corruption 13% Temperature Cool (9) Movement Core (100) Ox1 Location -7/Deep Caves Parts ------- > --- POWER (1) -------- (None) > --- PROPULSION (3) --- (None) > --- UTILITY (3) ------ High-capacity Battery Hacking Drone Bay (1/1) > --- WEAPON (2) ------- (None) > --- INVENTORY (5) ---- Spear Peak State ------------ > --- POWER ------------ Reinforced Ion Engine > --- PROPULSION ------- Improved Aluminum Leg Improved Aluminum Leg Improved Titanium Leg > --- UTILITY ---------- Small Storage Unit Experimental System Shield Hacking Drone Bay > --- WEAPON ----------- RU-N14's Throwing Claymores RU-N14's Throwing Claymores > --- INVENTORY -------- High-capacity Battery Sensor Array Mobile Refinery Mk. CCLXVII Splice Drone Bay EMP Blaster Plasma Cutter Spear [Rating: 44] Favorites ----------- Power Reinforced Ion Engine Engine Reinforced Ion Engine Power Core Light Nuclear Core Propulsion Improved Aluminum Leg Leg Improved Aluminum Leg Utility Small Storage Unit Device Splice Drone Bay Storage Small Storage Unit Processor Signal Interpreter Hackware Experimental System Shield Protection Light Armor Plating Weapon Improved Light Cannon Energy Gun Zionite Laser-S Ballistic Gun Shotgun Ballistic Cannon Improved Light Cannon Launcher EMP Blaster Special Weapon RU-N14's Throwing Claymores Impact Weapon Heavy Hammer Piercing Weapon Spear Build | -11 -10 -9 -9 -7 -7 ------- Run | Yrd Mat Mat Min Zio Dee Slots Evolved 2 | . . 2 . . . Power . | . . . . . . Propulsion 1 | . . 1 . . . Utility 1 | . . 1 . . . Weapon . | . . . . . . Parts Attached 74 | 4 19 15 8 19 9 Power 4 | 1 1 2 . . . Engine 3 | 1 . 2 . . . Core 1 | . 1 . . . . Reactor . | . . . . . . Propulsion 13 | 2 7 2 1 1 . Treads . | . . . . . . Leg 13 | 2 7 2 1 1 . Wheel . | . . . . . . Hover . | . . . . . . Flight . | . . . . . . Utility 33 | 1 7 7 5 9 4 Device 19 | . 2 3 5 6 3 Storage 4 | 1 2 . . . 1 Processor 3 | . 2 1 . . . Hackware 1 | . . . . 1 . Protection 6 | . 1 3 . 2 . Artifact . | . . . . . . Weapon 24 | . 4 4 2 9 5 Energy Gun 1 | . . . . . 1 Energy Cannon . | . . . . . . Ballistic Gun 2 | . 2 . . . . Ballistic Cannon 6 | . 2 3 1 . . Launcher 1 | . . . . . 1 Special Weapon 11 | . . . 1 8 2 Impact Weapon 2 | . . 1 . 1 . Slashing Weapon . | . . . . . . Piercing Weapon 1 | . . . . . 1 Special Melee Weapon . | . . . . . . Unidentified Prototypes 7 | . . . 1 4 2 Corrupted Parts 2 | . . . . . 2 System Corruption 13 | . . . . . 13 Parts Lost 14 | . . 4 . . 10 Power 1 | . . . . . 1 Propulsion 5 | . . 2 . . 3 Utility 5 | . . 2 . . 3 Weapon 3 | . . . . . 3 Highest Loss Streak 6 | . . 3 . . 6 To Critical Strikes . | . . . . . . Average Slot Usage (%) 95 | . 94 94 98 99 78 Engine 9 | . 7 5 11 11 10 Core 2 | . 6 5 . . . Leg 29 | . 28 28 31 33 22 Device 8 | . 5 4 10 10 12 Storage 11 | . 14 11 11 11 10 Processor 7 | . 4 8 11 6 . Hackware 1 | . . . . 4 1 Protection 1 | . . 7 . . . Ballistic Gun 2 | . 16 . . . . Ballistic Cannon 10 | . 7 21 15 3 . Special Weapon 7 | . . . 6 18 12 Naked Turns 3 | . . . . . 3 Heaviest Build 40 | 10 20 24 31 39 40 Greatest Support 46 | 20 26 39 36 46 46 Greatest Overweight (x) 2 | 1 . . . 1 2 Average Overweight (x) . | . . . . . . Largest Inventory Capacity 8 | 8 8 8 8 8 8 Average Capacity 7 | 7 8 8 8 8 7 Most Carried 8 | 3 8 8 8 8 8 Average Carried 7 | 1 7 5 7 7 6 Final Capacity 8 | 8 8 8 8 8 5 Final Carried 8 | 3 8 7 8 8 1 Class Distribution -------------------- 100% | Mutant Dominant Class ---------------- Mutant | -10/Materials Mutant | -9/Materials Mutant | -9/Mines Mutant | -7/Zion Mutant | -7/Deep Caves Resources | -11 -10 -9 -9 -7 -7 ----------- Run | Yrd Mat Mat Min Zio Dee Matter Collected 1322 | 202 308 464 165 148 35 Remotely . | . . . . . . Salvage Created 798 | . 298 409 28 5 58 Parts 51 | . 17 29 2 . 3 Haulers Intercepted 3 | . 2 1 . . . Recyclers Shooed . | . . . . . . Parts Field Recycled . | . . . . . . Retrieved Matter . | . . . . . . Parts Self-Destructed 2 | . . . . 2 . Prevented . | . . . . . . Kills | -11 -10 -9 -9 -7 -7 ------- Run | Yrd Mat Mat Min Zio Dee Combat Hostiles Destroyed 24 | . 7 14 1 . 2 Melee 2 | . . 2 . . . Guns 7 | . 7 . . . . Cannons 11 | . . 10 1 . . AOE 2 | . . . . . 2 Classes Destroyed 7 | . 4 1 . . 2 Hauler 3 | . 2 1 . . . Watcher 4 | . 1 3 . . . Swarmer 6 | . 3 3 . . . Grunt 14 | . 4 9 1 . . Sentry 2 | . . 2 . . . Z-Technician 5 | . . . . . 5 Z-Light 1 | . . . . . 1 Best Kill Streak 7 | . 5 4 1 . 7 Combat Bots Only 5 | . 5 4 1 . 2 Max Kills in Single Turn 5 | . 2 1 1 . 5 Gunslinging 1 | . 1 . . . . Exploded 1 | . . . . . 1 Melee 1 | . . 1 . . . Uniques/NPCs Destroyed 1 | . . . . . 1 Z-Imprinter (-7/Deep Caves) Combat | -11 -10 -9 -9 -7 -7 -------- Run | Yrd Mat Mat Min Zio Dee Hostile Shots Fired 188 | . 34 112 1 . 41 Missed 43 | . 5 29 1 . 8 Damage Taken 2594 | . 233 921 59 . 1381 Core 457 | . 40 113 . . 304 Absorbed by Shields 147 | . 91 56 . . . Redirected to Shielding 25 | . . 25 . . . Regen/Repaired (Parts) 54 | . . . . 54 . Core Remaining (%) 92 | 100 84 . . . . Volleys Fired 152 | . 22 37 13 68 12 Largest 2 | . 2 2 2 1 2 Hottest 100 | . 78 78 100 20 60 Shots Fired 214 | . 44 73 14 68 15 Gun 35 | . 34 . . . 1 Cannon 85 | . 10 73 2 . . Launcher 5 | . . . . . 5 Special 89 | . . . 12 68 9 Kinetic 119 | . 44 73 2 . . Thermal 82 | . . . 12 68 2 Explosive 8 | . . . . . 8 Electromagnetic 5 | . . . . . 5 Robot Hit Streak 14 | . 5 14 1 4 2 Robot Miss Streak 7 | . 7 2 1 . 5 Penetration Max . | . . . . . . Secondary Targets 1 | . 1 . . . . Max Gunslinging Chain 1 | . 1 . . . . Shots Hit Robots 98 | . 30 60 1 4 3 Core Hits 47 | . 18 17 1 . 11 Critical Kills . | . . . . . . Critical Parts Destroyed 3 | . . 3 . . . Critical Strikes 6 | . . 5 1 . . Blast 3 | . . 2 1 . . Smash 3 | . . 3 . . . Melee Attacks 13 | . . 12 . 1 . Impact 13 | . . 12 . 1 . Slashing . | . . . . . . Piercing . | . . . . . . Sneak Attacks . | . . . . . . Combat Hostiles . | . . . . . . Follow-up Attacks . | . . . . . . Damage Inflicted 5032 | . 429 1474 19 149 2961 Guns 348 | . 321 . . . 27 Cannons 1242 | . 102 1121 19 . . Explosions 2800 | . . . . . 2800 Melee 469 | . . 353 . 116 . Ramming 12 | . 6 . . . 6 Kinetic 1563 | . 423 1121 19 . . Thermal 2289 | . . . . 33 2256 Explosive 471 | . . . . . 471 Electromagnetic 100 | . . . . . 100 Impact 469 | . . 353 . 116 . Slashing 128 | . . . . . 128 Piercing . | . . . . . . Highest Corruption 13 | . 2 3 3 3 13 Average Corruption 3 | . 2 1 3 3 12 Corruption Purged . | . . . . . . Corruption Blocked . | . . . . . . Effects 23 | . 1 2 17 . 3 Message Errors 3 | . . . 3 . . Matter Fused 4 | . . 1 3 . . Heat Flow Errors 5 | . 1 . 3 . 1 Energy Discharges 1 | . . . 1 . . Parts Rejected 1 | . . . . . 1 Data Loss (minor) 7 | . . 1 5 . 1 Data Loss (major) 2 | . . . 2 . . Overload Shots . | . . . . . . Overflow Damage 858 | . . 131 . 108 619 Projectiles 17 | . . 17 . . . Explosions 619 | . . . . . 619 Melee 222 | . . 114 . 108 . Knockbacks 13 | . . 12 . 1 . Impact 2 | . . 1 . 1 . Kinetic 9 | . . 9 . . . Secondary 2 | . . 2 . . . Self-Inflicted Damage 392 | . . . . . 392 Shots 1 | . . . . . 1 Rammed 2 | . . . . . 2 Targets Rammed 4 | . 2 . . . 2 Kicked 2 | . 2 . . . . Crushed . | . . . . . . Highest Temperature 280 | . 264 168 280 . 256 Average Temperature 58 | . 68 47 67 . 70 Received Heat Transfer 793 | . 102 394 . . 297 Effects 2 | . 2 . . . . Interference 2 | . 2 . . . . Siege Activations . | . . . . . . Robots Corrupted . | . . . . . . Combat Hostiles . | . . . . . . Parts Fried 1 | . . . . . 1 Impact Corruptions 12 | . . 6 . 6 . Robots Melted . | . . . . . . Combat Hostiles . | . . . . . . Parts Melted . | . . . . . . Heat Transferred 198 | . . . . 111 87 Parts Sabotaged . | . . . . . . Parts Stolen . | . . . . . . Parts Stripped . | . . . . . . Power Chain Reactions 1 | . . . . . 1 Alert | -11 -10 -9 -9 -7 -7 ------- Run | Yrd Mat Mat Min Zio Dee Peak Influence 249 | . 215 249 48 . . Initial 19 | . . 16 19 . . Average 66 | . 63 119 16 . . Maximum Alert Level 1 | . 1 1 . . . Low Security (%) 96 | 100 95 94 100 . . Level 1 3 | . 4 5 . . . Level 2 . | . . . . . . Level 3 . | . . . . . . Level 4 . | . . . . . . Level 5 . | . . . . . . High Security . | . . . . . . Max Security . | . . . . . . Squads Dispatched 4 | . . 4 . . . Investigation 2 | . . 2 . . . Extermination . | . . . . . . Reinforcement 2 | . . 2 . . . Assault . | . . . . . . Garrison . | . . . . . . Intercept . | . . . . . . Searches Triggered . | . . . . . . Construction Impeded 1 | . . 1 . . . Haulers Reinforced . | . . . . . . Active Scanning Responses . | . . . . . . Cargo Convoy Interrupts . | . . . . . . Stealth | -11 -10 -9 -9 -7 -7 --------- Run | Yrd Mat Mat Min Zio Dee Distress Signals 3 | . . 3 . . . Communications Jammed . | . . . . . . Distress Signals . | . . . . . . Times Spotted 42 | . 10 22 2 . 8 Peak Tracking Total 7 | . 3 7 2 . 5 Tactical Retreats 3 | . 1 2 . . . Traps | -11 -10 -9 -9 -7 -7 ------- Run | Yrd Mat Mat Min Zio Dee Traps Triggered 4 | . 1 3 . . . Indirectly . | . . . . . . Trap Hack Attempts . | . . . . . . Triggered . | . . . . . . Disarmed . | . . . . . . Reprogrammed . | . . . . . . Reused . | . . . . . . Traps Extracted . | . . . . . . Installed . | . . . . . . Triggered . | . . . . . . Machines | -11 -10 -9 -9 -7 -7 ---------- Run | Yrd Mat Mat Min Zio Dee Machines Disabled 4 | . . 2 . . 2 Max in Single Turn 2 | . . 1 . . 2 Machines Repaired . | . . . . . . Machines Dismantled 3 | . . . . 3 . Machines Sabotaged . | . . . . . . Overloaded Fab Kills . | . . . . . . Hacking | -11 -10 -9 -9 -7 -7 --------- Run | Yrd Mat Mat Min Zio Dee Machines Accessed 9 | . 4 3 1 1 . Terminals 6 | . 3 3 . . . Fabricators . | . . . . . . Repair Stations . | . . . . . . Recycling Units 1 | . 1 . . . . Scanalyzers . | . . . . . . Garrison Access . | . . . . . . Total Hacks 23 | . 11 8 1 3 . Successful 17 | . 7 6 1 3 . Failed 6 | . 4 2 . . . Catastrophic . | . . . . . . Database Lockouts . | . . . . . . Manual 1 | . . . . 1 . Terminals 16 | . 8 8 . . . Fabricators . | . . . . . . Repair Stations . | . . . . . . Recycling Units 3 | . 3 . . . . Scanalyzers . | . . . . . . Garrison Access . | . . . . . . Terminal Hacks 15 | . 5 6 1 3 . Record 1 | . . 1 . . . Part Schematic 3 | . . . . 3 . Robot Analysis 1 | . . 1 . . . Prototype ID Bank 1 | . 1 . . . . Open Door 1 | . . . 1 . . Emergency Access Points 1 | . . 1 . . . Terminal Index 1 | . 1 . . . . Alert Level 1 | . . 1 . . . Unreport Threat 1 | . . 1 . . . Dispatch Records 1 | . 1 . . . . Maintenance Status 2 | . 2 . . . . Hauler Manifests 1 | . . 1 . . . Fabricator Hacks . | . . . . . . Repair Station Hacks . | . . . . . . Recycling Unit Hacks 2 | . 2 . . . . Report Inventory 1 | . 1 . . . . Retrieve Components 1 | . 1 . . . . Scanalyzer . | . . . . . . Garrison Access Hacks . | . . . . . . Unauthorized Hacks . | . . . . . . Terminals . | . . . . . . Fabricators . | . . . . . . Repair Stations . | . . . . . . Recycling Units . | . . . . . . Scanalyzers . | . . . . . . Garrison Access . | . . . . . . Data Cores Recovered . | . . . . . . Used . | . . . . . . Hacking Detections 5 | . 2 3 . . . Full Trace Events 2 | . 1 1 . . . Feedback Events . | . . . . . . Feedback Blocked . | . . . . . . Robot Schematics Acquired . | . . . . . . Robots Built . | . . . . . . Authchips . | . . . . . . Time . | . . . . . . Total Robot Build Rating . | . . . . . . Part Schematics Acquired 3 | . . . . 3 . Parts Built . | . . . . . . Authchips . | . . . . . . Time . | . . . . . . Total Part Build Rating . | . . . . . . Parts Repaired . | . . . . . . Time . | . . . . . . Parts Recycled . | . . . . . . Recycled Matter . | . . . . . . Retrieved Matter . | . . . . . . Retrieved Components 2 | . 2 . . . . Parts Scanalyzed . | . . . . . . Part Schematics Acquired . | . . . . . . Parts Damaged . | . . . . . . Bothacking | -11 -10 -9 -9 -7 -7 ------------ Run | Yrd Mat Mat Min Zio Dee Used RIF Installer . | . . . . . . Robots Hacked . | . . . . . . Non-combat . | . . . . . . Combat . | . . . . . . Robot Hacks Applied . | . . . . . . Relay Couplers Released . | . . . . . . Fabnet Peak Effective % . | . . . . . . Robots Rewired . | . . . . . . Allies Hacked . | . . . . . . Hacks Repelled . | . . . . . . Allies | -11 -10 -9 -9 -7 -7 -------- Run | Yrd Mat Mat Min Zio Dee Total Allies 1 | . . . 1 . . Largest Group 1 | . . . 1 . . Highest-Rated Group 31 | . . . 31 . . Highest-Rated Ally 31 | . . . 31 . . Total Orders . | . . . . . . Ally Attacks 10 | . . . . . 10 Total Damage 45 | . . . . . 45 Kills . | . . . . . . Allies Corrupted 1 | . . . . 1 . Allies Melted . | . . . . . . Intel | -11 -10 -9 -9 -7 -7 ------- Run | Yrd Mat Mat Min Zio Dee Robot Analysis Total 1 | . . 1 . . . Derelict Logs Recovered 3 | . . . 1 2 . Drone Launches 11 | . . . 6 . 5 Drone Recoveries 10 | . . . . . 10 Exploration | -11 -10 -9 -9 -7 -7 ------------- Run | Yrd Mat Mat Min Zio Dee Turns Passed 4162 | 65 722 927 880 1199 369 Spaces Moved 2380 | 49 347 507 620 629 228 Core 13 | 5 . . . . 8 Treads . | . . . . . . Legs 2367 | 44 347 507 620 629 220 Wheels . | . . . . . . Hover . | . . . . . . Flight . | . . . . . . Fastest Speed 50 | 50 120 120 120 120 50 Average Speed 124 | 115 120 120 120 129 139 Slowest Speed 200 | 120 120 120 120 190 200 Overloaded Moves . | . . . . . . Propulsion Burnouts . | . . . . . . Robots Hopped 3 | . . . . 3 . Cave-ins Triggered . | . . . . . . Exploration Rate (%) 42 | 3 44 31 70 63 44 Regions Visited 5 Branch Regions 3 Pre-discovered Areas 1 | . . . . 1 . Known Exits Taken 3 | . 1 1 1 . . Unknown Exits Taken 2 | 1 . . . 1 . Scrap Searched 4 | . . . 1 3 . Spaces Dug 11 | . . . 11 . . Terrain Destroyed 53 | . . 6 12 . 35 Melee . | . . . . . . Projectile 18 | . . 6 12 . . AOE 35 | . . . . . 35 Terrain Rammed . | . . . . . . Walls Destroyed . | . . . . . . Machines Disabled . | . . . . . . Actions | -11 -10 -9 -9 -7 -7 --------- Run | Yrd Mat Mat Min Zio Dee Total 3192 | 55 609 731 717 818 262 Wait 412 | . 182 149 63 11 7 Move 2369 | 48 346 506 619 622 228 Hop 3 | . . . . 3 . Pick Up 41 | 3 18 5 6 8 1 Fast Attach 31 | 4 10 4 2 9 2 Attach 17 | . 1 8 1 1 6 Detach 3 | . . 2 . 1 . Swap 26 | . 8 3 5 9 1 Drop 51 | . 20 5 6 17 3 Fire 152 | . 22 37 13 68 12 Melee 13 | . . 12 . 1 . Ram 2 | . . . . . 2 Kick 2 | . 2 . . . . Crush . | . . . . . . Escape Stasis . | . . . . . . Rewire 43 | . . . 2 41 . Trap . | . . . . . . Miscellaneous 27 | . . . . 27 . Route ------- -11/Scrapyard -10/Materials (discovered 2 exits: *Mat / [*Min]) -9/Materials (discovered 2 exits: *Mat / *Min) -9/Mines (discovered 3 exits: *Mat / *Exi / *Zio) -7/Zion (discovered 2 exits: [*Dee] / Pro) -7/Deep Caves History --------- Turn | Location | Event 16 | -11/Scrapyard | Discovered new exit (range 15) 66 | -11/Scrapyard | Entered Materials 314 | -10/Materials | Build established: Mutant 477 | -10/Materials | Discovered new exit (range 15) 597 | -10/Materials | Discovered new exit (range 12) 728 | -10/Materials | Identified exit to Materials 788 | -10/Materials | Entered another Materials area 788 | -9/Materials | Evolved 2 slots: Propulsion x1, Utility x1 956 | -9/Materials | Discovered new exit (range 6) 964 | -9/Materials | Identified exit to Mines 1202 | -9/Materials | Lost 3 parts (1n2u) 1419 | -9/Materials | Discovered new exit (range 16) 1498 | -9/Materials | Identified exit to Materials 1715 | -9/Materials | Entered Mines 1716 | -9/Mines | YI-UF0 nonchalantly dropped a Grenade Launcher on the ground 1846 | -9/Mines | Discovered exit to Materials (range 4) 1943 | -9/Mines | Received a Mining Laser from a helpful Derelict 2212 | -9/Mines | Found the Drone Emporium 2220 | -9/Mines | Found Prototype Device 2220 | -9/Mines | Identified Splice Drone Bay 2277 | -9/Mines | Learned Materials security intel 2517 | -9/Mines | Deemed a non-threat by the Exiles lab entrance 2517 | -9/Mines | Discovered new exit (range 6) 2522 | -9/Mines | Identified exit to Exiles 2578 | -9/Mines | A Derelict revealed a hidden shortcut to a safe place 2591 | -9/Mines | Assembled infested the area 2591 | -9/Mines | Identified exit to Zion 2595 | -9/Mines | Entered Zion 2595 | -7/Zion | Accompanied by 6 allies 2651 | -7/Zion | System corruption cleaned by Quarantine Array 2730 | -7/Zion | Learned location of Armory (-4) 2794 | -7/Zion | Found Prototype Special Weapon 2794 | -7/Zion | Identified RU-N14's Throwing Claymores 2797 | -7/Zion | Found RU-N14's Throwing Claymores 2807 | -7/Zion | Found RU-N14's Throwing Claymores 2811 | -7/Zion | Found RU-N14's Throwing Claymores 2845 | -7/Zion | Identified exit to Proximity Caves 3021 | -7/Zion | Learned Factory emergency access door positions 3039 | -7/Zion | Found Prototype Device 3040 | -7/Zion | Identified Mobile Refinery Mk. CCLXVII 3327 | -7/Zion | Found Prototype Hackware 3342 | -7/Zion | Identified Exp. System Shield 3397 | -7/Zion | Given the Hacking Drone Bay 3405 | -7/Zion | Found Prototype Device 3411 | -7/Zion | Identified Hacking Drone Bay 3789 | -7/Zion | Discovered new exit (range 4) 3792 | -7/Zion | Saw the warning signs outside the Deep Caves entrance 3794 | -7/Zion | Entered Deep Caves 3794 | -7/Deep Caves | Accompanied by 5 allies 3987 | -7/Deep Caves | Z-Facility disabled 3988 | -7/Deep Caves | Core integrity fell below 50% 3997 | -7/Deep Caves | Attacked by Z-Imprinter 4007 | -7/Deep Caves | Destroyed Z-Imprinter 4046 | -7/Deep Caves | System corruption reached 10% 4057 | -7/Deep Caves | Lost 4 parts (2n2u) 4144 | -7/Deep Caves | Core integrity fell below 20% 4163 | -7/Deep Caves | Destroyed by TW-4QW(z) with Zionite Laser-S Last Messages --------------- The unstable cave ceiling collapses. System corrupted: Component data lost. System corrupted: Heat flow error (+274). EMP Blaster destroyed. Rnf. Ion Engine destroyed. Zio. Laser-S destroyed. Imp. Titanium Leg destroyed. Sml. Storage Unit destroyed. Dropped Self-destruct Interrupter. Self-destruct Interrupter emitting active interruption sequence. System corrupted: Spear rejected. Self-destruct Interrupter emitting active interruption sequence. Plasma Cutter destroyed. Slammed into TW-4QW(z). Self-destruct Interrupter emitting active interruption sequence. Slammed into TW-4QW(z). Acquired Spear. Map ----- +----------------------------------------------------+ | | | | | | | | | | | ?????????????????????????????????????????????????? | | ?????????????????????????????????????????????????? | | ??????????????????? ?????????????????????????????? | | ??????????????????# ???# ?????????????????????##?? | | ??????????????##??# ??# ???????????????????### #? | | ???????????? # #?# ## ???????????????? ## # ? | | ?????????? ## ???????????????? # | | ?????????? ???????????? | | ????????? ???????????? | | ????????? ??????????? | | ???????? ??????????? | | ???????? """??????????" | | ???????? """"????????"" | | ??????? """"""?""??""" | | ??????? """""""""""""" | | ?????? """"""""""" | | ?????? """"""""" | | ?????? """""" | | ?????? """" | | ?????? "" | | ?????? !""@z | | ?????? zz | | ?????? z z | | ?????? | | ??????? | | ??????? | | ???????? | | ???????? | | ???????? | | ????????? | | ????????? | | ?????????? | | ?????????? | | ???????????? | | ????????????? | | ?????????????? | | ?????????????? | | ?????????????? | | ??????????????? | | ??????????????? | | ???????????????? | | ???????????????? | | ????????????????? | | ?????????????????? | | ??????????????????? ##### | +----------------------------------------------------+ Best States ------------- Heat Dissipation 28 Energy Generation 14 Energy Capacity 450 Matter Stores 300 Matter Capacity 300 Sight Range 16 Robot Scan Range 14 Terrain Scan Density 10 ECM Strength 1 Armor Coverage 150 Power Shielding 66 Weapon Shielding 33 Evasion (%) 55 Defensive Hacking 16 Item Schematics ----------------- Beamcaster | -7/Zion | Free Battle Rifle | -7/Zion | Free Slug Cannon | -7/Zion | Free Robot Schematics ------------------ None Fabricated ------------ Nothing Alien Tech Used ----------------- None Achievements -------------- Adventurer Are We The Baddies? Everything Is Under Control Release The Drones! Robot Respite Signs Are For Wimps Challenges ------------ None Game ------ Seed AbsorptionAntigravCharge Manual? 0 Play Time 01:06:55 Cumulative 9.0 hours Start 2024.07.16 @ 13:49:28 End 2024.07.16 @ 19:26:59 Sessions 11 Manual Loads 0 Difficulty Rogue Special Mode None Game No. 5 Rogue 5 Adventurer 0 Explorer 0 Win Type - Total 0 Types 0/0/0/0/0/0/0/0/0 Lore% 12 Gallery% 17 Achievement% 14 Wizard Run 0 Options --------- Layout 1 ASCII 0 Keyboard 0 Movement Numpad Keybinds 0 Fullscreen 1 Font 24/Smallcaps Map View 50x35 Zoom Use 0% Tactical HUD 0 Map Filters NONE Filters NONE Steam 1 RUN: 8c10868e-e43e-4808-bcea-271500e0d5a3